[Event "Fagernes Chess GM-Swiss 2024"]
[Site "Fagernes"]
[Date "2024.03.27"]
[Round "4.17"]
[White "Kistrup, Nicolai"]
[Black "Hillarp Persson, Tiger"]
[Result "1/2-1/2"]
[ECO "A31"]
[WhiteElo "2324"]
[BlackElo "2473"]
[Annotator "TA"]
[PlyCount "115"]
[EventDate "2024.03.25"]
[EventType "swiss"]
[EventCountry "NOR"]
[SourceTitle "playchess.com"]
[Source "ChessBase"]
[SourceQuality "1"]
[TimeControl "40/6000+30:2400+30"]

{[%evp 31,115,37,68,58,87,74,79,79,85,82,83,82,68,58,108,119,98,100,94,88,90,87,83,59,60,57,60,68,52,77,73,33,68,68,70,66,80,66,90,60,89,74,82,74,42,8,67,54,36,34,41,41,73,64,57,16,55,56,51,48,63,75,89,87,94,0,0,0,0,0,0,0,0,0,0,0,0,0,0,0,0,0,0,0,0,0]} 1. e4 {[%emt 0:00:06]} c5 {[%emt 0:02:19]} 2. Nf3 {[%emt 0:00:06]} e6 {[%emt 0:00:41]} 3. d4 {[%emt 0:01:16]} cxd4 {[%emt 0:00:07]} 4. Nxd4 {[%emt 0:00:04]} a6 {[%emt 0:00:13]} 5. c4 {[%emt 0:00:32]} Nf6 {[%emt 0:00:33]} 6. Nc3 {[%emt 0:00:34]} Qc7 {[%emt 0:00:24]} 7. a3 {[%emt 0:01:11]} b6 {[%emt 0:00:48]} 8. Be3 {[%emt 0:01:56]} Bb7 {[%emt 0:01:28]} 9. f3 {[%emt 0:00:10]} d6 {[%emt 0:00:06]} 10. Be2 {[%emt 0:01:24]} Be7 {[%emt 0:00:19]} 11. O-O {[%emt 0:00:30]} Nbd7 {[%emt 0:01:18]} 12. Rc1 {[%emt 0:02:35]} O-O {[%emt 0:02:13]} 13. b4 {[%emt 0:01:51]} Rac8 {[%emt 0:01:39]} 14. Qd2 {[%emt 0:01:58]} Qb8 {[%emt 0:00:12]} 15. Rfd1 {[%emt 0:02:09]} Rfe8 {[%emt 0:16:19]} 16. Nb3 {[%emt 0:01:10] 16.Bf1 might become the main line.} h5 {[%emt 0:04:24] A31: Symmetrical English: 2 Nf3 Nf6 3 d4.} 17. Bf2 {[%emt 0:06:09]} Red8 $146 {[%emt 0:41:22]} ({Predecessor:} 17... Bc6 18. Rc2 Ba8 19. Kh1 Ne5 20. Na4 Nfd7 21. Nb2 h4 22. h3 Nf6 23. Bxh4 Nxe4 24. Qe1 Bxh4 25. Qxh4 {½-½ Havasi,G (2362)-Babiy,O (2341) Budapest FS11 GM 2015 (3)}) 18. Kh1 {[%emt 0:07:21]} Ba8 {[%emt 0:02:38]} 19. Qe3 {[%emt 0:04:48]} Re8 {[%emt 0:00:13]} 20. Na4 {[%emt 0:17:43]} Bd8 {[%emt 0:07:01]} 21. Bg3 {[%emt 0:09:08]} Bc7 {[%emt 0:02:03]} 22. Qd2 {[%emt 0:13:22]} b5 {[%emt 0:07:13] [#]} (22... Ne5 $14) 23. cxb5 $1 $16 {[%emt 0:06:27]} axb5 {[%emt 0:00:35]} 24. Nc3 {[%emt 0:04:56]} d5 {[%emt 0:00:43]} 25. Bxc7 {[%emt 0:00:45]} (25. Bxb5 Bxg3 26. hxg3 Rxc3 27. Qxc3 Qxb5 $15) 25... Rxc7 {[%emt 0:00:31]} 26. exd5 {[%emt 0:00:44]} (26. Nxb5 $6 Rxc1 27. Rxc1 (27. Qxc1 Rc8 $17) 27... dxe4 $11) (26. Bxb5 dxe4 27. Be2 exf3 28. Bxf3 Ne5 29. Bxa8 Neg4 $17 (29... Qxa8 30. Qd6 $16)) 26... Nxd5 {[%emt 0:00:31]} 27. Nxb5 {[%emt 0:03:50]} Rxc1 {[%emt 0:01:01]} 28. Rxc1 {[%emt 0:00:40]} h4 {[%emt 0:01:38]} 29. Nc7 {[%emt 0:04:58]} Rd8 {[%emt 0:02:08]} 30. Nxa8 {[%emt 0:01:03]} Qxa8 {[%emt 0:00:06]} 31. Na5 {[%emt 0:01:34]} N7f6 {[%emt 0:04:35]} 32. Qg5 {[%emt 0:04:47]} Rc8 {[%emt 0:03:47]} 33. Rxc8+ {[%emt 0:02:53]} Qxc8 {[%emt 0:01:17]} 34. Nc4 {[%emt 0:00:28]} (34. Qxh4 $2 Qc1+) 34... h3 {[%emt 0:03:04]} 35. gxh3 {[%emt 0:01:52]} Nc3 {[%emt 0:00:15]} 36. Bf1 {[%emt 0:01:11]} Qa8 {[%emt 0:03:11]} 37. Qe3 {[%emt 0:03:35]} Nfd5 {[%emt 0:00:52]} 38. Qd3 {[%emt 0:00:11]} Qa7 {[%emt 0:00:16]} (38... Qd8 $11) 39. Qd2 $14 {[%emt 0:01:40]} Nb5 {[%emt 0:01:05]} 40. Qb2 {[%emt 0:01:51]} Nbc3 {[%emt 0:00:38]} 41. b5 {[%emt 0:12:08]} Qb8 {[%emt 0:03:59]} 42. b6 {[%emt 0:08:39]} Na4 {[%emt 0:00:57]} 43. Qb5 {[%emt 0:06:15]} Naxb6 {[%emt 0:00:17]} 44. Nxb6 {[%emt 0:01:33]} Nxb6 {[%emt 0:00:08]} 45. a4 {[%emt 0:00:17]} Qc7 {[%emt 0:03:05]} 46. a5 $1 {[%emt 0:01:16]} Nd5 {[%emt 0:02:24]} 47. a6 {[%emt 0:01:41]} Qa7 {[%emt 0:02:02]} 48. h4 {[%emt 0:08:06]} (48. Bc4 $16) 48... Nf4 $1 $11 {[%emt 0:06:09]} 49. Qb2 {[%emt 0:03:15]} Qe3 {[%emt 0:00:37]} 50. Qb8+ {[%emt 0:00:57]} Kh7 {[%emt 0:00:08]} 51. Qb1+ {[%emt 0:01:09]} f5 {[%emt 0:00:55]} 52. Qd1 {[%emt 0:00:16]} Qf2 {[%emt 0:00:23]} 53. h5 {[%emt 0:00:46]} e5 {[%emt 0:07:55]} 54. Qa1 {[%emt 0:00:43]} Qxf3+ {[%emt 0:01:41]} 55. Kg1 {[%emt 0:00:03]} Qe3+ {[%emt 0:08:18]} (55... Nxh5 56. a7 (56. Qxe5 Qg4+ 57. Kf2 Nf6 $14) 56... Qa8 57. Bg2 $18 (57. Qxe5 Qxa7+ 58. Kg2 Qb7+ 59. Kf2 Qb6+ 60. Kf3 Qb3+ 61. Kf2 Qb6+ 62. Kf3 Qc6+ 63. Kf2 Qf6 $17)) 56. Kh1 {[%emt 0:00:03]} Qf3+ {[%emt 0:00:11]} (56... Nxh5 $2 {too greedy.} 57. a7 $18) 57. Kg1 {[%emt 0:00:04]} Qe3+ {[%emt 0:00:07]} (57... Nxh5 58. a7 (58. Qxe5 Qg4+ 59. Kf2 Nf6 $14) 58... Qa8 59. Bg2 $18 (59. Qxe5 Qxa7+ 60. Kg2 Qb7+ 61. Kf2 Qb6+ 62. Ke2 g6 $17)) 58. Kh1 {[%emt 0:00:03]} 1/2-1/2

[Event "Fagernes Chess GM-Swiss 2024"]
[Site "Fagernes"]
[Date "2024.03.27"]
[Round "4.18"]
[White "Kvaloy, Aksel Bu"]
[Black "Vagman, Roy"]
[Result "1/2-1/2"]
[ECO "D02"]
[WhiteElo "2454"]
[BlackElo "2311"]
[Annotator "RC"]
[PlyCount "151"]
[EventDate "2024.03.25"]
[EventType "swiss"]
[EventCountry "NOR"]
[SourceTitle "playchess.com"]
[Source "ChessBase"]
[SourceQuality "1"]
[TimeControl "40/6000+30:2400+30"]

1. d4 {[%emt 0:01:07]} d5 {[%emt 0:00:10]} 2. Nf3 {[%emt 0:00:15]} Nf6 {[%emt 0:00:08]} 3. Bf4 {[%emt 0:00:08]} e6 {[%emt 0:00:12]} 4. e3 {[%emt 0:00:28]} Bd6 {[%emt 0:00:09]} 5. Ne5 {[%emt 0:00:57]} O-O {[%emt 0:00:10]} 6. Bd3 {[%emt 0:00:45]} b6 {[%emt 0:00:26]} 7. Nd2 {[%emt 0:05:39]} Ba6 {[%emt 0:01:07]} 8. Bxa6 {[%emt 0:02:46]} Nxa6 {[%emt 0:00:09]} 9. h4 {[%emt 0:01:55]} c5 {[%emt 0:25:55]} 10. h5 {[%emt 0:12:34]} Qc7 {[%emt 0:04:07]} 11. h6 {[%emt 0:07:06]} g6 {[%emt 0:00:26]} 12. Qf3 {[%emt 0:15:40]} cxd4 {[%emt 0:09:23]} 13. exd4 {[%emt 0:01:16]} Qxc2 {[%emt 0:15:17]} 14. Ng4 {[%emt 0:05:01]} Be7 {[%emt 0:13:54]} 15. Bd6 {[%emt 0:17:16]} Nxg4 {[%emt 0:03:17]} 16. Bxe7 {[%emt 0:00:11]} Rfe8 {[%emt 0:00:20]} 17. Qxg4 {[%emt 0:08:52]} Rxe7 {[%emt 0:00:40]} 18. Qh4 {[%emt 0:06:26]} f6 {[%emt 0:00:55]} 19. Nb3 {[%emt 0:05:36]} Qe4+ {[%emt 0:06:45]} 20. Qxe4 {[%emt 0:00:28]} dxe4 {[%emt 0:00:02]} 21. Kd2 {[%emt 0:00:54]} Nb4 {[%emt 0:01:03]} 22. a3 {[%emt 0:02:29]} Nd5 {[%emt 0:00:08]} 23. Rac1 {[%emt 0:00:17]} Rd8 {[%emt 0:01:04]} 24. Rc6 {[%emt 0:01:41]} Kf7 {[%emt 0:03:35]} 25. g3 {[%emt 0:01:27]} Rc7 {[%emt 0:02:01]} 26. Rxc7+ {[%emt 0:01:20]} Nxc7 {[%emt 0:00:03]} 27. Rc1 {[%emt 0:00:43]} Nd5 {[%emt 0:00:35]} 28. Ke2 {[%emt 0:00:08]} f5 {[%emt 0:01:58]} 29. Nd2 {[%emt 0:01:10]} g5 {[%emt 0:09:55]} 30. Nc4 {[%emt 0:00:51]} g4 {[%emt 0:01:25]} 31. Ne5+ {[%emt 0:00:35]} Kf6 {[%emt 0:00:27]} 32. Rc6 {[%emt 0:01:12]} Ke7 {[%emt 0:04:52]} 33. Rc1 {[%emt 0:00:45]} Ra8 {[%emt 0:00:50]} 34. b4 {[%emt 0:01:17]} a6 {[%emt 0:01:40]} 35. Kd2 {[%emt 0:00:35]} Kd8 {[%emt 0:01:25]} 36. Rc6 {[%emt 0:01:32]} Ke7 {[%emt 0:00:01]} 37. Rc1 {[%emt 0:00:14]} Rf8 {[%emt 0:00:59]} 38. Nc6+ {[%emt 0:02:17]} Kf6 {[%emt 0:00:53]} 39. Ne5 {[%emt 0:00:31]} Ke7 {[%emt 0:00:01]} 40. Nc6+ {[%emt 0:00:16]} Kd6 {[%emt 0:01:24]} 41. Ne5 {[%emt 0:41:05]} Ne7 {[%emt 0:42:15]} 42. Ke2 {[%emt 0:00:00]} b5 {[%emt 0:00:00]} 43. Rc5 {[%emt 0:00:00]} Rc8 {[%emt 0:00:00]} 44. Nf7+ {[%emt 0:00:00]} Kd7 {[%emt 0:00:00]} 45. Ng5 {[%emt 0:00:00]} Rxc5 {[%emt 0:00:00]} 46. dxc5 {[%emt 0:00:00]} Ng8 {[%emt 0:00:00]} 47. Nxh7 {[%emt 0:00:00]} Nxh6 {[%emt 0:00:00]} 48. Nf8+ {[%emt 0:00:00]} Ke7 {[%emt 0:00:00]} 49. Ng6+ {[%emt 0:00:00]} Kf6 {[%emt 0:00:00]} 50. Nf8 {[%emt 0:00:00]} Nf7 {[%emt 0:00:00]} 51. Nd7+ {[%emt 0:02:14]} Ke7 {[%emt 0:00:00]} 52. Nb8 {[%emt 0:00:13]} Kd8 {[%emt 0:00:00]} 53. Nxa6 {[%emt 0:00:58]} Kd7 {[%emt 0:00:00]} 54. c6+ {[%emt 0:00:46]} Kxc6 {[%emt 0:00:00]} 55. Nc5 {[%emt 0:00:57]} Kd5 {[%emt 0:00:00]} 56. Ke3 {[%emt 0:03:30]} e5 {[%emt 0:00:00]} 57. a4 {[%emt 0:02:20]} bxa4 {[%emt 0:00:00]} 58. Nxa4 {[%emt 0:00:03]} Nd6 {[%emt 0:00:00]} 59. Nc5 {[%emt 0:00:50]} Nc4+ {[%emt 0:00:00]} 60. Ke2 {[%emt 0:00:02]} f4 {[%emt 0:00:00]} 61. Nd7 {[%emt 0:00:34]} Ke6 {[%emt 0:00:00]} 62. Nc5+ {[%emt 0:00:05]} Kf5 {[%emt 0:00:00]} 63. b5 {[%emt 0:00:06]} e3 {[%emt 0:00:00]} 64. fxe3 {[%emt 0:00:19]} Nxe3 {[%emt 0:00:00]} 65. b6 {[%emt 0:00:41]} Nc2 {[%emt 0:00:00]} 66. b7 {[%emt 0:00:23]} Nd4+ {[%emt 0:00:00]} 67. Kf2 {[%emt 0:00:05]} Nc6 {[%emt 0:00:00]} 68. Nd7 {[%emt 0:02:19]} e4 {[%emt 0:00:00]} 69. b8=Q {[%emt 0:00:49]} Nxb8 {[%emt 0:00:00]} 70. Nxb8 {[%emt 0:00:05]} e3+ {[%emt 0:00:00]} 71. Ke2 {[%emt 0:02:19]} Ke4 {[%emt 0:00:00]} 72. Nd7 {[%emt 0:00:26]} fxg3 {[%emt 0:00:00]} 73. Nc5+ {[%emt 0:00:13]} Kd4 {[%emt 0:00:00]} 74. Nb3+ {[%emt 0:00:21]} Ke4 {[%emt 0:00:00]} 75. Nc5+ {[%emt 0:00:06]} Kd5 {[%emt 0:00:40]} 76. Nd3 {[%emt 0:00:18]} 1/2-1/2

[Event "Fagernes Chess GM-Swiss 2024"]
[Site "Fagernes"]
[Date "2024.03.27"]
[Round "4.19"]
[White "Elsness, Frode"]
[Black "Eliseev, Sergey"]
[Result "1/2-1/2"]
[ECO "A07"]
[WhiteElo "2437"]
[BlackElo "2131"]
[Annotator "TA"]
[PlyCount "85"]
[EventDate "2024.03.25"]
[EventType "swiss"]
[EventCountry "NOR"]
[SourceTitle "playchess.com"]
[Source "ChessBase"]
[SourceQuality "1"]
[TimeControl "40/6000+30:2400+30"]

{[%evp 9,85,8,19,-8,17,10,7,0,-7,0,10,0,7,0,10,5,34,0,12,13,7,13,11,-4,22,15,19,14,10,16,18,16,62,33,34,28,30,33,64,62,66,0,0,2,24,15,39,27,68,26,20,29,16,12,11,10,4,0,0,-8,-7,-9,0,0,0,0,0,0,0,0,0,0,0,0,0,0,0,0]} 1. Nf3 d5 2. g3 b6 3. Bg2 Bb7 4. d4 e6 5. O-O Nd7 6. c4 dxc4 7. Qa4 a6 8. Qxc4 Ngf6 {Repels e4} 9. Rd1 Be7 10. Nc3 b5 11. Qd3 c5 12. dxc5 {Threatening b4.} Nxc5 13. Qc2 Qb6 14. Be3 {[#] Strongly threatening b4.} Qc7 15. Bf4 Qb6 16. a4 {axb5 would now be deadly.} bxa4 17. Nxa4 Nxa4 18. Qxa4+ Bc6 19. Qa5 Qxa5 20. Rxa5 Bb4 (20... O-O $11 {is more appropriate.}) 21. Raa1 O-O 22. Rdc1 Bd5 23. Ne5 {[%cal Oe2e4]} Bxg2 24. Kxg2 Nd5 25. Nd3 ({White should try} 25. Nc6 $14 Rfc8 26. Nxb4 Rxc1 27. Rxc1 (27. Bxc1 Nxb4 28. Bd2 Nc6 $14) 27... Nxb4 28. Bd6) 25... Nxf4+ $11 26. gxf4 Be7 27. Rc7 Rfe8 28. Ra4 h6 29. Kf3 {White has more active pieces.} a5 30. Rb7 Bd6 31. Rb5 {The position is equal.} Bc7 32. Rc4 Ra7 33. Rbc5 Bd6 34. Rc6 Be7 35. Rc7 Rxc7 36. Rxc7 {[%mdl 4096] Endgame. KRB-KRN} Bf6 37. Rb7 Ra8 38. Nc5 a4 39. e3 a3 40. bxa3 Rxa3 41. Rb8+ Kh7 42. Nd7 Be7 43. Nf8+ {[%emt 1:32:26] Weighted Error Value: White=0.09 (flawless) /Black=0.08 (flawless) .  Mistake:       	White=1     	Black=1      Inaccurate:     	White=3     	Black=4      OK:         	White=13    	Black=18     Best:        	---       	Black=3} 1/2-1/2

[Event "Fagernes Chess GM-Swiss 2024"]
[Site "Fagernes"]
[Date "2024.03.27"]
[Round "4.20"]
[White "Tsolakidou, Stavroula"]
[Black "Nandhidhaa, P V"]
[Result "1/2-1/2"]
[ECO "C41"]
[WhiteElo "2424"]
[BlackElo "2305"]
[Annotator "TA"]
[PlyCount "90"]
[EventDate "2024.03.25"]
[EventType "swiss"]
[EventCountry "NOR"]
[SourceTitle "playchess.com"]
[Source "ChessBase"]
[SourceQuality "1"]
[TimeControl "40/6000+30:2400+30"]

{[%evp 17,90,30,36,42,43,17,45,24,31,47,53,38,47,48,55,29,52,18,18,13,23,17,27,9,30,2,29,17,33,31,31,45,61,52,40,50,58,53,48,65,52,12,46,56,53,22,44,62,59,31,22,19,41,24,31,15,46,50,44,49,69,77,69,68,69,0,0,0,0,0,8,8,8,0,0]} 1. e4 {[%emt 0:01:25]} d6 {[%emt 0:04:27]} 2. d4 {[%emt 0:00:18]} Nf6 {[%emt 0:00:13]} 3. Nc3 {[%emt 0:00:15]} e5 {[%emt 0:00:25]} 4. Nf3 {[%emt 0:00:32]} Nbd7 {[%emt 0:00:18]} 5. Bc4 {[%emt 0:00:29]} Be7 {[%emt 0:00:16]} 6. O-O {[%emt 0:00:38]} O-O {[%emt 0:00:11]} 7. Re1 {[%emt 0:00:34]} c6 {[%emt 0:00:31]} 8. a4 {[%emt 0:00:26]} h6 {[%emt 0:00:41]} 9. h3 {[%emt 0:02:11]} Re8 {[%emt 0:00:24]} 10. a5 {[%emt 0:09:11]} Qc7 {[%emt 0:03:08]} 11. Bf1 {[%emt 0:03:38]} exd4 {[%emt 0:08:16]} 12. Nxd4 {[%emt 0:01:22] White is slightly better.} Bf8 {[%emt 0:03:28]} 13. Bf4 {[%emt 0:10:58]} Ne5 {[%emt 0:04:58]} 14. Qd2 {[%emt 0:02:26]} Bd7 {[%emt 0:06:33]} 15. Bh2 {[%emt 0:02:04]} Rad8 {[%emt 0:06:07]} 16. f4 {[%emt 0:02:10]} Ng6 {[%emt 0:01:57]} 17. Kh1 {[%emt 0:10:10]} (17. Nf3 $5) 17... Qc8 $1 {[%emt 0:07:36]} 18. Qf2 {[%emt 0:05:30]} c5 $1 {[%emt 0:03:29]} 19. Nf3 {[%emt 0:00:47]} Bc6 {[%emt 0:01:47]} 20. Nd2 {[%emt 0:01:41]} b6 {[%emt 0:11:16]} 21. axb6 {[%emt 0:05:42]} axb6 {[%emt 0:01:05]} 22. Bd3 {[%emt 0:00:14]} (22. Rad1 $5) 22... Qb7 {[%emt 0:13:17]} 23. e5 {[%emt 0:03:23]} dxe5 {[%emt 0:03:24]} 24. fxe5 {[%emt 0:00:12][%cal Bf4e5,Be5e6][%mdl 32]} Nd5 {[%emt 0:00:45] [#]} 25. e6 $1 {[%emt 0:00:37] White is more active.} Nxc3 {[%emt 0:01:15]} 26. bxc3 {[%emt 0:00:58]} Bd5 {[%emt 0:01:45]} 27. Ba6 {[%emt 0:07:58]} Qe7 {[%emt 0:02:31]} 28. Bb5 {[%emt 0:00:58]} Bxe6 $1 {[%emt 0:00:44]} 29. Bxe8 {[%emt 0:01:06]} Rxe8 {[%emt 0:00:39]} 30. Nc4 {[%emt 0:07:38]} Qd7 {[%emt 0:04:40]} 31. Ne3 {[%emt 0:10:16]} b5 {[%emt 0:05:54]} 32. Qf3 {[%emt 0:03:12]} Qd2 {[%emt 0:04:19]} 33. Qe2 {[%emt 0:03:40]} Qxc3 {[%emt 0:01:28]} 34. Qxb5 {[%emt 0:00:15]} Rd8 {[%emt 0:01:06]} 35. Qa5 {[%emt 0:00:16]} Qf6 {[%emt 0:01:55]} 36. Rad1 {[%emt 0:01:12]} Rd4 {[%emt 0:01:21]} 37. Rxd4 {[%emt 0:05:34]} cxd4 {[%emt 0:00:22]} 38. Ng4 {[%emt 0:04:41]} Bxg4 {[%emt 0:02:19]} 39. hxg4 {[%emt 0:00:06]} Qf2 {[%emt 0:01:46]} 40. Rc1 {[%emt 0:01:20]} Nf4 {[%emt 0:01:54]} 41. Qa8 {[%emt 0:06:51]} (41. Rg1 $1 $14) 41... d3 $1 $11 {[%emt 0:04:54] The position is equal.} 42. cxd3 {[%emt 0:07:39]} Nxd3 {[%emt 0:00:20]} 43. Rb1 {[%emt 0:00:39]} Qh4 {[%emt 0:11:49]} 44. Rf1 {[%emt 0:04:35]} Qxg4 {[%emt 0:00:32]} 45. Qe8 {[%emt 0:17:24]} (45. Qd5 $5 Qg6 $8 46. Qf5 $11) 45... Nf2+ {[%emt 0:03:54] Weighted Error Value: White=0.12 (very precise) /Black=0.06 (flawless) .  Mistake:       	White=1     	---        Inaccurate:     	White=6     	Black=4      OK:         	White=11    	Black=15     Best:        	White=2     	Black=2      Strong:       	---       	Black=4} 1/2-1/2

[Event "Fagernes Chess GM-Swiss 2024"]
[Site "Fagernes"]
[Date "2024.03.27"]
[Round "4.21"]
[White "Amar, Elham"]
[Black "Melaa, Sondre"]
[Result "1-0"]
[ECO "C54"]
[WhiteElo "2567"]
[BlackElo "2285"]
[Annotator "TA"]
[PlyCount "63"]
[EventDate "2024.03.25"]
[EventType "swiss"]
[EventCountry "NOR"]
[SourceTitle "playchess.com"]
[Source "ChessBase"]
[SourceQuality "1"]
[TimeControl "40/6000+30:2400+30"]

{[%evp 10,63,24,16,21,12,32,0,12,11,31,29,27,26,28,18,45,39,55,35,61,42,67,29,41,35,52,51,51,22,10,0,18,0,107,120,116,103,97,91,96,91,204,177,435,423,794,775,703,637,652,627,637,638,586,475]} 1. e4 {[%emt 0:02:43]} e5 {[%emt 0:08:30]} 2. Nf3 {[%emt 0:00:05]} Nc6 {[%emt 0:00:12]} 3. Bc4 {[%emt 0:00:07]} Nf6 {[%emt 0:00:25]} 4. d3 {[%emt 0:00:07]} Bc5 {[%emt 0:00:22]} 5. c3 {[%emt 0:00:09]} a6 {[%emt 0:01:08]} 6. Bg5 {[%emt 0:00:50]} Be7 {[%emt 0:01:45]} 7. O-O {[%emt 0:01:38]} d6 {[%emt 0:01:59]} 8. b4 {[%emt 0:07:34]} O-O {[%emt 0:01:40] Die Stellung ist ausgeglichen.} 9. Nbd2 {[%emt 0:02:13]} Ng4 {[%emt 0:06:05]} 10. Bxe7 {[%emt 0:00:44]} Nxe7 {[%emt 0:02:06][%cal Bc6e7,Be7g6,Bg6f4][%mdl 32]} 11. Re1 {[%emt 0:08:26]} Ng6 {[%emt 0:11:11]} 12. d4 {[%emt 0:05:50]} Qf6 {[%emt 0:07:23]} 13. Bf1 {[%emt 0:07:27]} h5 {[%emt 0:12:51]} 14. h3 {[%emt 0:08:46]} Nh6 {[%emt 0:02:21]} 15. Nc4 {[%emt 0:00:18][%cal Bd2c4,Bc4e3,Be3d5][%mdl 32]} Be6 {[%emt 0:04:58]} 16. Ne3 {[%emt 0:01:50]} Nf4 {[%emt 0:04:26]} 17. c4 {[%emt 0:16:44]} g5 {[%emt 0:17:14]} 18. Nd5 {[%emt 0:06:51]} Qg7 {[%emt 0:01:26]} 19. dxe5 {[%emt 0:14:18]} dxe5 {[%emt 0:00:25]} 20. Nh2 {[%emt 0:00:28]} Rad8 {[%emt 0:04:12]} 21. Qf3 {[%emt 0:02:48]} f5 {[%emt 0:07:40]} (21... g4 $11 {hält das Gleichgewicht.} 22. hxg4 hxg4) 22. Nxf4 $16 {[%emt 0:04:12]} gxf4 {[%emt 0:03:29]} 23. Qxh5 {[%emt 0:00:09]} fxe4 {[%emt 0:01:34]} 24. Rxe4 {[%emt 0:00:03]} Rf5 {[%emt 0:02:16]} 25. Qh4 {[%emt 0:00:48]} Rd2 {[%emt 0:01:38]} (25... Re8 $16 {war einen Versuch wert.}) 26. Nf3 $18 {[%emt 0:02:31]} Rb2 {[%emt 0:00:20] [#]} (26... Rd7 {war nötig.}) 27. Nd4 {[%emt 0:01:39] Weiß steht klar auf Gewinn.} Rf6 {[%emt 0:02:03]} (27... Bd7 $142 28. Nxf5 Bxf5) 28. Rxe5 {[%emt 0:00:42]} Bf7 {[%emt 0:01:40]} 29. Rg5 {[%emt 0:00:57]} Rg6 {[%emt 0:00:09]} 30. Rxg6 {[%emt 0:00:17]} Qxg6 {[%emt 0:00:15]} 31. Qxf4 {[%emt 0:00:36]} Rxb4 {[%emt 0:00:05]} 32. Nf3 {[%emt 0:00:43] Gewichteter Fehlerwert: Weiß=0.12 (sehr präzise) /Schwarz=0.39.  Fehler:       	---       	Schwarz=4     Ungenau:       	Weiß=3     	Schwarz=1     OK:         	Weiß=7     	Schwarz=6     Bester:       	Weiß=3     	---} 1-0

[Event "Fagernes Chess GM-Swiss 2024"]
[Site "Fagernes"]
[Date "2024.03.27"]
[Round "4.22"]
[White "Krishnan, Ritvik"]
[Black "Prraneeth Vuppala"]
[Result "1-0"]
[ECO "B90"]
[WhiteElo "2277"]
[BlackElo "2506"]
[Annotator "RC"]
[PlyCount "135"]
[EventDate "2024.03.25"]
[EventType "swiss"]
[EventCountry "NOR"]
[SourceTitle "playchess.com"]
[Source "ChessBase"]
[SourceQuality "1"]
[TimeControl "40/6000+30:2400+30"]

1. e4 {[%emt 0:00:02]} c5 {[%emt 0:25:22]} 2. Nf3 {[%emt 0:00:03]} d6 {[%emt 0:00:07]} 3. d4 {[%emt 0:00:02]} cxd4 {[%emt 0:00:07]} 4. Nxd4 {[%emt 0:00:03]} Nf6 {[%emt 0:00:08]} 5. Nc3 {[%emt 0:00:03]} a6 {[%emt 0:00:03]} 6. h3 {[%emt 0:00:03]} e5 {[%emt 0:01:17]} 7. Nf3 {[%emt 0:00:05]} Qc7 {[%emt 0:00:22]} 8. a4 {[%emt 0:06:14]} Be6 {[%emt 0:01:19]} 9. Ng5 {[%emt 0:02:30]} Bd7 {[%emt 0:03:42]} 10. Bd3 {[%emt 0:07:40]} Be7 {[%emt 0:01:59]} 11. O-O {[%emt 0:02:13]} h6 {[%emt 0:00:44]} 12. Nf3 {[%emt 0:00:14]} O-O {[%emt 0:01:58]} 13. Re1 {[%emt 0:07:14]} Nc6 {[%emt 0:01:17]} 14. Bc4 {[%emt 0:06:20]} Rac8 {[%emt 0:03:23]} 15. Ba2 {[%emt 0:05:15]} Nb4 {[%emt 0:11:24]} 16. Bb3 {[%emt 0:01:23]} Be6 {[%emt 0:00:32]} 17. Be3 {[%emt 0:11:01]} Rfd8 {[%emt 0:09:50]} 18. a5 {[%emt 0:05:36]} Nd7 {[%emt 0:03:31]} 19. Ra4 {[%emt 0:06:36]} Nc6 {[%emt 0:04:38]} 20. Nd5 {[%emt 0:07:33]} Bxd5 {[%emt 0:03:59]} 21. Qxd5 {[%emt 0:00:36]} Rf8 {[%emt 0:00:06]} 22. Rd1 {[%emt 0:05:27]} Nc5 {[%emt 0:04:36]} 23. Bxc5 {[%emt 0:08:04]} dxc5 {[%emt 0:00:04]} 24. Qd2 {[%emt 0:06:53]} Nb4 {[%emt 0:08:56]} 25. Bc4 {[%emt 0:08:13]} Rfd8 {[%emt 0:06:40]} 26. Qe2 {[%emt 0:00:31]} Rxd1+ {[%emt 0:04:22]} 27. Qxd1 {[%emt 0:01:25]} Rd8 {[%emt 0:00:05]} 28. Qb1 {[%emt 0:02:56]} g6 {[%emt 0:05:47]} 29. c3 {[%emt 0:00:49]} Nc6 {[%emt 0:00:05]} 30. Bd5 {[%emt 0:00:37]} Kg7 {[%emt 0:01:24]} 31. Qa2 {[%emt 0:00:35]} Bf6 {[%emt 0:01:27]} 32. g3 {[%emt 0:01:43]} Rd6 {[%emt 0:02:49]} 33. Nd2 {[%emt 0:01:31]} Bd8 {[%emt 0:02:01]} 34. Nc4 {[%emt 0:00:41]} Rf6 {[%emt 0:00:05]} 35. Kg2 {[%emt 0:01:27]} h5 {[%emt 0:00:44]} 36. h4 {[%emt 0:00:36]} Ne7 {[%emt 0:01:10]} 37. Ne3 {[%emt 0:00:55]} Qd7 {[%emt 0:00:20]} 38. Qc4 {[%emt 0:02:44]} Nxd5 {[%emt 0:01:13]} 39. Nxd5 {[%emt 0:00:14]} Rd6 {[%emt 0:00:02]} 40. Ra1 {[%emt 0:01:55]} f5 {[%emt 0:01:54]} 41. Qxc5 {[%emt 0:41:32]} fxe4 {[%emt 0:08:16]} 42. c4 {[%emt 0:00:00]} Rc6 {[%emt 0:03:15]} 43. Qb4 {[%emt 0:00:00]} Qf7 {[%emt 0:02:10]} 44. Ra3 {[%emt 0:00:00]} g5 {[%emt 0:14:17]} 45. hxg5 {[%emt 0:00:00]} Bxg5 {[%emt 0:00:03]} 46. Rb3 {[%emt 0:00:00]} h4 {[%emt 0:01:58]} 47. Qxb7 {[%emt 0:00:00]} Rxc4 {[%emt 0:00:58]} 48. Qa8 {[%emt 0:00:00]} Rb4 {[%emt 0:08:57]} 49. Nxb4 {[%emt 0:00:00]} Qxb3 {[%emt 0:00:06]} 50. Qb7+ {[%emt 0:00:00]} Kf8 {[%emt 0:05:11]} 51. Qxe4 {[%emt 0:00:00]} hxg3 {[%emt 0:00:10]} 52. Qf5+ {[%emt 0:00:00]} Qf7 {[%emt 0:00:02]} 53. Qc8+ {[%emt 0:00:00]} Kg7 {[%emt 0:00:06]} 54. fxg3 {[%emt 0:00:00]} e4 {[%emt 0:01:47]} 55. Qg4 {[%emt 0:00:00]} Qg6 {[%emt 0:00:39]} 56. Qd7+ {[%emt 0:00:00]} Kg8 {[%emt 0:00:30]} 57. Qc8+ {[%emt 0:00:09]} Kg7 {[%emt 0:00:15]} 58. Qb7+ {[%emt 0:00:44]} Kh8 {[%emt 0:00:23]} 59. Qxa6 {[%emt 0:01:27]} Qf5 {[%emt 0:00:03]} 60. Qe2 {[%emt 0:01:14]} Bd8 {[%emt 0:00:40]} 61. a6 {[%emt 0:01:29]} Bb6 {[%emt 0:00:10]} 62. Qf1 {[%emt 0:02:12]} Qe6 {[%emt 0:00:57]} 63. Qh1+ {[%emt 0:01:48]} Kg7 {[%emt 0:00:25]} 64. Qh3 {[%emt 0:00:18]} Qf6 {[%emt 0:01:01]} 65. Qg4+ {[%emt 0:00:54]} Kf7 {[%emt 0:00:34]} 66. Qf4 {[%emt 0:00:32]} Qxf4 {[%emt 0:00:23]} 67. gxf4 {[%emt 0:00:02]} Ke6 {[%emt 0:00:01]} 68. Nc6 {[%emt 0:00:25]} 1-0